[Event "Late-Titled-Tuesday-Blitz-October-17-2023"]
[Site "Chess.com"]
[Date "2023.10.17"]
[Round "1"]
[White "SergioMoralesG"]
[Black "eljanov"]
[Result "0-1"]
[WhiteElo "2443"]
[BlackElo "2829"]
[TimeControl "180+1"]
[EndTime "14:07:53 PDT"]
[Termination "eljanov won on time"]

1. d4 {[%clk 0:02:58.9]} 1... Nf6 {[%clk 0:02:56.8]} 2. c4 {[%clk 0:02:59.5]}
2... e6 {[%clk 0:02:56.9]} 3. Nf3 {[%clk 0:03:00.1]} 3... b6 {[%clk 0:02:56.9]}
4. g3 {[%clk 0:02:59.2]} 4... Bb7 {[%clk 0:02:56.9]} 5. Bg2 {[%clk 0:02:58.6]}
5... Bb4+ {[%clk 0:02:57.4]} 6. Bd2 {[%clk 0:02:56]} 6... Be7 {[%clk 0:02:58]}
7. Nc3 {[%clk 0:02:53.6]} 7... c6 {[%clk 0:02:58.4]} 8. e4 {[%clk 0:02:46.4]}
8... d5 {[%clk 0:02:58.3]} 9. cxd5 {[%clk 0:02:31.6]} 9... cxd5 {[%clk
0:02:59.2]} 10. e5 {[%clk 0:02:29.1]} 10... Ne4 {[%clk 0:02:59.4]} 11. O-O
{[%clk 0:02:24.9]} 11... Nxd2 {[%clk 0:02:56.8]} 12. Nxd2 {[%clk 0:02:20.7]}
12... Nc6 {[%clk 0:02:48.5]} 13. Nb3 {[%clk 0:02:19.4]} 13... Ba6 {[%clk
0:02:44.5]} 14. Re1 {[%clk 0:02:18.7]} 14... O-O {[%clk 0:02:45]} 15. a3 {[%clk
0:02:14.7]} 15... Qd7 {[%clk 0:02:40.1]} 16. Rc1 {[%clk 0:02:13.4]} 16... Rac8
{[%clk 0:02:38.6]} 17. Bf1 {[%clk 0:02:11]} 17... Bc4 {[%clk 0:02:28.8]} 18. Na1
{[%clk 0:01:46.3]} 18... Na5 {[%clk 0:02:25.7]} 19. b4 {[%clk 0:01:35.6]} 19...
Bxf1 {[%clk 0:02:23]} 20. Rxf1 {[%clk 0:01:30.6]} 20... Nc4 {[%clk 0:02:22.6]}
21. Nc2 {[%clk 0:01:24.3]} 21... Nxe5 {[%clk 0:02:19.8]} 22. Nxd5 {[%clk
0:01:04.6]} 22... Qxd5 {[%clk 0:02:13.9]} 23. dxe5 {[%clk 0:01:04.7]} 23... Qxe5
{[%clk 0:02:10.2]} 24. Ne3 {[%clk 0:00:45.8]} 24... Bg5 {[%clk 0:01:53.4]} 25.
Re1 {[%clk 0:00:21.6]} 25... Rxc1 {[%clk 0:01:33.4]} 26. Qxc1 {[%clk 0:00:21.5]}
26... Qb8 {[%clk 0:01:25.9]} 27. Qc6 {[%clk 0:00:15.5]} 27... Rc8 {[%clk
0:01:22.2]} 28. Qd7 {[%clk 0:00:15]} 28... Rc7 {[%clk 0:01:20.4]} 29. Qd6 {[%clk
0:00:13]} 29... Qc8 {[%clk 0:01:15.2]} 30. Ng4 {[%clk 0:00:08.4]} 30... Be7
{[%clk 0:01:10.3]} 31. Qd3 {[%clk 0:00:06.9]} 31... Rc1 {[%clk 0:01:07.1]} 32.
Rxc1 {[%clk 0:00:05.8]} 32... Qxc1+ {[%clk 0:01:06.8]} 33. Kg2 {[%clk
0:00:06.7]} 33... Qc6+ {[%clk 0:01:06.8]} 34. Kg1 {[%clk 0:00:06.4]} 34... f6
{[%clk 0:00:57.9]} 35. Ne3 {[%clk 0:00:06.4]} 35... b5 {[%clk 0:00:54.3]} 36. h4
{[%clk 0:00:06.5]} 36... a6 {[%clk 0:00:48.4]} 37. Kh2 {[%clk 0:00:05.8]} 37...
g6 {[%clk 0:00:34.1]} 38. Nc2 {[%clk 0:00:05.7]} 38... Kf7 {[%clk 0:00:33.4]}
39. Nd4 {[%clk 0:00:05.5]} 39... Qd5 {[%clk 0:00:33]} 40. Qe3 {[%clk 0:00:06.1]}
40... Bd8 {[%clk 0:00:28.6]} 41. Ne2 {[%clk 0:00:06]} 41... Qd6 {[%clk
0:00:23.1]} 42. Qh6 {[%clk 0:00:05.1]} 42... Kg8 {[%clk 0:00:23.5]} 43. Qe3
{[%clk 0:00:05.1]} 43... Bb6 {[%clk 0:00:23.4]} 44. Qc3 {[%clk 0:00:04.4]} 44...
Kf7 {[%clk 0:00:20.3]} 45. Kg2 {[%clk 0:00:04.1]} 45... Qd5+ {[%clk 0:00:19.9]}
46. f3 {[%clk 0:00:04.4]} 46... Qc4 {[%clk 0:00:19.9]} 47. Qd2 {[%clk
0:00:02.6]} 47... Qc6 {[%clk 0:00:17.9]} 48. Nf4 {[%clk 0:00:02.4]} 48... e5
{[%clk 0:00:17.3]} 49. Ne2 {[%clk 0:00:02]} 49... Kg7 {[%clk 0:00:12.5]} 50. Nc3
{[%clk 0:00:02]} 50... Bd4 {[%clk 0:00:11.9]} 51. Ne4 {[%clk 0:00:02.4]} 51...
Qc4 {[%clk 0:00:12.1]} 0-1

[Event "Late-Titled-Tuesday-Blitz-October-17-2023"]
[Site "Chess.com"]
[Date "2023.10.17"]
[Round "1"]
[White "Chessbard1972"]
[Black "KNVB"]
[Result "0-1"]
[WhiteElo "2335"]
[BlackElo "2636"]
[TimeControl "180+1"]
[EndTime "14:07:54 PDT"]
[Termination "KNVB won by checkmate"]

1. d4 {[%clk 0:02:58.8]} 1... Nf6 {[%clk 0:02:58.7]} 2. c4 {[%clk 0:02:56.9]}
2... e5 {[%clk 0:02:58.6]} 3. dxe5 {[%clk 0:02:56.3]} 3... Ng4 {[%clk
0:02:57.6]} 4. e4 {[%clk 0:02:55.3]} 4... Nxe5 {[%clk 0:02:55.9]} 5. f4 {[%clk
0:02:54.6]} 5... Nec6 {[%clk 0:02:55.9]} 6. Be3 {[%clk 0:02:53.9]} 6... Bb4+
{[%clk 0:02:50.6]} 7. Nd2 {[%clk 0:02:51.4]} 7... Qe7 {[%clk 0:02:42.7]} 8. Bd3
{[%clk 0:02:45]} 8... Na6 {[%clk 0:02:33.9]} 9. a3 {[%clk 0:02:42.3]} 9... Nc5
{[%clk 0:02:16]} 10. Qc2 {[%clk 0:02:18.3]} 10... Bxd2+ {[%clk 0:02:07.1]} 11.
Bxd2 {[%clk 0:02:16.9]} 11... Nd4 {[%clk 0:01:41.3]} 12. Qc3 {[%clk 0:01:52.9]}
12... Ndb3 {[%clk 0:01:41.1]} 13. Rd1 {[%clk 0:01:42.3]} 13... Nxd3+ {[%clk
0:01:41.3]} 14. Qxd3 {[%clk 0:01:40.7]} 14... Nc5 {[%clk 0:01:41.9]} 15. Qf3
{[%clk 0:01:12.6]} 15... Qxe4+ {[%clk 0:01:34.4]} 16. Qxe4+ {[%clk 0:01:11.2]}
16... Nxe4 {[%clk 0:01:35.3]} 17. Be3 {[%clk 0:01:10.8]} 17... d6 {[%clk
0:01:29.6]} 18. Nf3 {[%clk 0:01:10.8]} 18... Be6 {[%clk 0:01:08.2]} 19. b3
{[%clk 0:01:08.6]} 19... O-O-O {[%clk 0:01:06.1]} 20. O-O {[%clk 0:01:06.5]}
20... Rhe8 {[%clk 0:01:00.1]} 21. Bd4 {[%clk 0:01:05.4]} 21... f6 {[%clk
0:00:57.1]} 22. Rfe1 {[%clk 0:01:04.4]} 22... Bg4 {[%clk 0:00:55.8]} 23. Rd3
{[%clk 0:00:51.2]} 23... Nc5 {[%clk 0:00:23.9]} 24. Rde3 {[%clk 0:00:50.3]}
24... Rxe3 {[%clk 0:00:19.9]} 25. Rxe3 {[%clk 0:00:50.4]} 25... Bxf3 {[%clk
0:00:16.3]} 26. gxf3 {[%clk 0:00:50.1]} 26... Kd7 {[%clk 0:00:11.3]} 27. f5
{[%clk 0:00:48.5]} 27... b6 {[%clk 0:00:07.1]} 28. b4 {[%clk 0:00:47.5]} 28...
Nb7 {[%clk 0:00:05.3]} 29. f4 {[%clk 0:00:45.2]} 29... Re8 {[%clk 0:00:05.3]}
30. Rg3 {[%clk 0:00:45.3]} 30... Re7 {[%clk 0:00:06]} 31. Kf2 {[%clk 0:00:44.4]}
31... c5 {[%clk 0:00:04.9]} 32. Bc3 {[%clk 0:00:43.5]} 32... a6 {[%clk
0:00:04.5]} 33. h4 {[%clk 0:00:43.3]} 33... Kc6 {[%clk 0:00:04.7]} 34. h5 {[%clk
0:00:43.5]} 34... h6 {[%clk 0:00:05.1]} 35. Rg1 {[%clk 0:00:39.2]} 35... b5
{[%clk 0:00:04.6]} 36. cxb5+ {[%clk 0:00:37.8]} 36... axb5 {[%clk 0:00:05.5]}
37. Rg6 {[%clk 0:00:34.1]} 37... Rf7 {[%clk 0:00:03.9]} 38. Rg3 {[%clk
0:00:33.4]} 38... c4 {[%clk 0:00:03.1]} 39. Re3 {[%clk 0:00:33.2]} 39... Kd7
{[%clk 0:00:02.8]} 40. Re1 {[%clk 0:00:30.6]} 40... Re7 {[%clk 0:00:03.1]} 41.
Rd1 {[%clk 0:00:30.3]} 41... Kc6 {[%clk 0:00:03.3]} 42. Bd4 {[%clk 0:00:28.8]}
42... d5 {[%clk 0:00:03.6]} 43. Kf3 {[%clk 0:00:28.2]} 43... Rd7 {[%clk
0:00:03.6]} 44. Rg1 {[%clk 0:00:28]} 44... Re7 {[%clk 0:00:03.6]} 45. Rg6 {[%clk
0:00:27.9]} 45... Nd6 {[%clk 0:00:02.9]} 46. Bc5 {[%clk 0:00:26]} 46... Rf7
{[%clk 0:00:02.5]} 47. Kg4 {[%clk 0:00:24.1]} 47... Ne4 {[%clk 0:00:02.1]} 48.
Bd4 {[%clk 0:00:23.2]} 48... Nd6 {[%clk 0:00:02.4]} 49. Kf3 {[%clk 0:00:23.1]}
49... Rd7 {[%clk 0:00:02.5]} 50. Rg1 {[%clk 0:00:22.5]} 50... Nxf5 {[%clk
0:00:03]} 51. Bf2 {[%clk 0:00:21.9]} 51... d4 {[%clk 0:00:03.3]} 52. Re1 {[%clk
0:00:22.2]} 52... d3 {[%clk 0:00:02.9]} 53. Be3 {[%clk 0:00:21.9]} 53... Nxe3
{[%clk 0:00:02.6]} 54. Kxe3 {[%clk 0:00:22]} 54... d2 {[%clk 0:00:03.1]} 55. Rd1
{[%clk 0:00:22]} 55... c3 {[%clk 0:00:03.8]} 56. Rf1 {[%clk 0:00:20]} 56... c2
{[%clk 0:00:03.7]} 57. Rf2 {[%clk 0:00:20.5]} 57... d1=Q {[%clk 0:00:04]} 58.
Re2 {[%clk 0:00:20.4]} 58... Qxe2+ {[%clk 0:00:04.2]} 59. Kxe2 {[%clk
0:00:20.5]} 59... c1=Q {[%clk 0:00:05.1]} 60. Kf3 {[%clk 0:00:20.7]} 60... f5
{[%clk 0:00:04.1]} 61. Kg3 {[%clk 0:00:20.5]} 61... Rd3+ {[%clk 0:00:04.4]} 62.
Kh4 {[%clk 0:00:20.7]} 62... Qxf4# {[%clk 0:00:05.1]} 0-1

[Event "Late-Titled-Tuesday-Blitz-October-17-2023"]
[Site "Chess.com"]
[Date "2023.10.17"]
[Round "1"]
[White "Barmen_EV"]
[Black "VincentKeymer"]
[Result "0-1"]
[WhiteElo "2508"]
[BlackElo "3087"]
[TimeControl "180+1"]
[EndTime "14:07:57 PDT"]
[Termination "VincentKeymer won by checkmate"]

1. e4 {[%clk 0:03:00]} 1... c6 {[%clk 0:02:58.5]} 2. d4 {[%clk 0:02:59.9]} 2...
d5 {[%clk 0:02:59.4]} 3. e5 {[%clk 0:03:00.4]} 3... Bf5 {[%clk 0:02:59.1]} 4. h4
{[%clk 0:02:59.7]} 4... h6 {[%clk 0:02:58.6]} 5. g4 {[%clk 0:02:59.3]} 5... Be4
{[%clk 0:02:57.8]} 6. f3 {[%clk 0:02:59.3]} 6... Bh7 {[%clk 0:02:58.6]} 7. e6
{[%clk 0:02:59.5]} 7... Nf6 {[%clk 0:02:59.1]} 8. exf7+ {[%clk 0:02:58.3]} 8...
Kxf7 {[%clk 0:03:00]} 9. g5 {[%clk 0:02:56]} 9... hxg5 {[%clk 0:02:50]} 10. hxg5
{[%clk 0:02:56.9]} 10... Bxc2 {[%clk 0:02:49.9]} 11. Qxc2 {[%clk 0:02:51.8]}
11... Rxh1 {[%clk 0:02:50.5]} 12. Qg2 {[%clk 0:02:49.3]} 12... Rh5 {[%clk
0:02:41.5]} 13. gxf6 {[%clk 0:02:46.5]} 13... exf6 {[%clk 0:02:29]} 14. Bd3
{[%clk 0:02:46.2]} 14... f5 {[%clk 0:02:26.2]} 15. Ne2 {[%clk 0:02:44.5]} 15...
Bd6 {[%clk 0:02:25.1]} 16. Be3 {[%clk 0:02:32]} 16... Nd7 {[%clk 0:02:20.6]} 17.
Nbc3 {[%clk 0:02:32]} 17... Qh4+ {[%clk 0:02:20.7]} 18. Kd2 {[%clk 0:02:29.7]}
18... Qh2 {[%clk 0:02:16.2]} 19. Qxh2 {[%clk 0:02:25.3]} 19... Bxh2 {[%clk
0:02:17.1]} 20. f4 {[%clk 0:02:22.1]} 20... Re8 {[%clk 0:02:15.8]} 21. b4 {[%clk
0:01:42.6]} 21... Nf6 {[%clk 0:02:11.6]} 22. b5 {[%clk 0:01:40.9]} 22... Ng4
{[%clk 0:02:10.6]} 23. Nd1 {[%clk 0:01:29.1]} 23... g6 {[%clk 0:02:05.1]} 24.
bxc6 {[%clk 0:01:28.7]} 24... bxc6 {[%clk 0:02:06]} 25. Rc1 {[%clk 0:01:00]}
25... Re6 {[%clk 0:01:54.8]} 26. Bg1 {[%clk 0:00:53.6]} 26... Rxe2+ {[%clk
0:01:46.6]} 27. Bxe2 {[%clk 0:00:49]} 27... Bxg1 {[%clk 0:01:45.7]} 28. Rxc6
{[%clk 0:00:49.1]} 28... Bxd4 {[%clk 0:01:45.9]} 29. Bf3 {[%clk 0:00:46.3]}
29... Nf6 {[%clk 0:01:41]} 30. Bxh5 {[%clk 0:00:45.5]} 30... Nxh5 {[%clk
0:01:37.6]} 31. Rc7+ {[%clk 0:00:25.3]} 31... Kf6 {[%clk 0:01:37.9]} 32. Rc6+
{[%clk 0:00:25.2]} 32... Kg7 {[%clk 0:01:38.4]} 33. a4 {[%clk 0:00:20.3]} 33...
Nxf4 {[%clk 0:01:34.6]} 34. a5 {[%clk 0:00:20.6]} 34... Kf7 {[%clk 0:01:28.3]}
35. Ne3 {[%clk 0:00:20.6]} 35... Ke7 {[%clk 0:01:28.3]} 36. Nc2 {[%clk
0:00:16.7]} 36... Bf2 {[%clk 0:01:23.7]} 37. Ne3 {[%clk 0:00:14.8]} 37... d4
{[%clk 0:01:17.8]} 38. Nd1 {[%clk 0:00:14.8]} 38... Bg1 {[%clk 0:01:09.8]} 39.
Rc7+ {[%clk 0:00:14]} 39... Kd6 {[%clk 0:01:07.4]} 40. Rxa7 {[%clk 0:00:14.9]}
40... Kc6 {[%clk 0:01:05.2]} 41. Nb2 {[%clk 0:00:12.3]} 41... Be3+ {[%clk
0:01:04.6]} 42. Kc2 {[%clk 0:00:11.6]} 42... d3+ {[%clk 0:01:01.9]} 43. Nxd3
{[%clk 0:00:11.5]} 43... Bxa7 {[%clk 0:01:01.9]} 44. Nxf4 {[%clk 0:00:12.4]}
44... g5 {[%clk 0:01:02.4]} 45. Ne6 {[%clk 0:00:09.6]} 45... g4 {[%clk
0:01:02.9]} 46. Kd3 {[%clk 0:00:09.1]} 46... Kd5 {[%clk 0:01:02.9]} 47. Nf4+
{[%clk 0:00:07.7]} 47... Ke5 {[%clk 0:01:02.8]} 48. Ng6+ {[%clk 0:00:08.2]}
48... Kf6 {[%clk 0:01:02.8]} 49. Nf4 {[%clk 0:00:08.7]} 49... Kg5 {[%clk
0:01:03.2]} 50. Ne6+ {[%clk 0:00:08.7]} 50... Kh4 {[%clk 0:01:02.5]} 51. Ke2
{[%clk 0:00:09.2]} 51... Kg3 {[%clk 0:01:02.8]} 52. Ng5 {[%clk 0:00:06.7]} 52...
f4 {[%clk 0:01:02.5]} 53. Ne4+ {[%clk 0:00:07]} 53... Kg2 {[%clk 0:01:02.9]} 54.
Ke1 {[%clk 0:00:04.6]} 54... f3 {[%clk 0:01:03.3]} 55. Nd2 {[%clk 0:00:04.3]}
55... g3 {[%clk 0:01:02.4]} 56. Kd1 {[%clk 0:00:04]} 56... Bc5 {[%clk
0:00:57.9]} 57. Ne4 {[%clk 0:00:03.9]} 57... f2 {[%clk 0:00:57]} 58. Nxc5 {[%clk
0:00:04.2]} 58... f1=Q+ {[%clk 0:00:57.2]} 59. Kc2 {[%clk 0:00:05.1]} 59... Qc4+
{[%clk 0:00:57.3]} 60. Kb2 {[%clk 0:00:05.7]} 60... Qxc5 {[%clk 0:00:58.2]} 61.
a6 {[%clk 0:00:06]} 61... Qb6+ {[%clk 0:00:58.7]} 62. Kc3 {[%clk 0:00:06]} 62...
Qxa6 {[%clk 0:00:59.6]} 63. Kd4 {[%clk 0:00:06.9]} 63... Kf3 {[%clk 0:00:59.3]}
64. Kd5 {[%clk 0:00:06.8]} 64... g2 {[%clk 0:00:59.8]} 65. Kd4 {[%clk
0:00:05.9]} 65... g1=Q+ {[%clk 0:01:00]} 66. Kd5 {[%clk 0:00:06.8]} 66... Qg5+
{[%clk 0:00:58.4]} 67. Kd4 {[%clk 0:00:07.2]} 67... Qe3+ {[%clk 0:00:57.7]} 68.
Kd5 {[%clk 0:00:06.6]} 68... Qb5+ {[%clk 0:00:57.6]} 69. Kd6 {[%clk 0:00:07]}
69... Qbc5+ {[%clk 0:00:58.2]} 70. Kd7 {[%clk 0:00:07.3]} 70... Qee7# {[%clk
0:00:59.1]} 0-1

[Event "Late-Titled-Tuesday-Blitz-October-17-2023"]
[Site "Chess.com"]
[Date "2023.10.17"]
[Round "1"]
[White "Cayse"]
[Black "rdarruda"]
[Result "1-0"]
[WhiteElo "2893"]
[BlackElo "2481"]
[TimeControl "180+1"]
[EndTime "14:07:57 PDT"]
[Termination "Cayse won by resignation"]

1. e4 {[%clk 0:03:00.9]} 1... c5 {[%clk 0:02:41.3]} 2. Nf3 {[%clk 0:03:00.1]}
2... Nc6 {[%clk 0:02:40.7]} 3. Bb5 {[%clk 0:02:57.3]} 3... g6 {[%clk 0:02:40.4]}
4. O-O {[%clk 0:02:56.4]} 4... Bg7 {[%clk 0:02:40.2]} 5. Bxc6 {[%clk 0:02:56.6]}
5... bxc6 {[%clk 0:02:39.7]} 6. Re1 {[%clk 0:02:56.8]} 6... e5 {[%clk
0:02:38.2]} 7. Na3 {[%clk 0:02:55.3]} 7... Ne7 {[%clk 0:02:37.2]} 8. Nc4 {[%clk
0:02:52.9]} 8... d6 {[%clk 0:02:35.9]} 9. d3 {[%clk 0:02:48.4]} 9... O-O {[%clk
0:02:34.2]} 10. h3 {[%clk 0:02:48.3]} 10... h6 {[%clk 0:02:32.9]} 11. a3 {[%clk
0:02:45.1]} 11... Be6 {[%clk 0:02:29.4]} 12. b4 {[%clk 0:02:44]} 12... cxb4
{[%clk 0:02:22]} 13. axb4 {[%clk 0:02:44.9]} 13... f6 {[%clk 0:02:14.1]} 14. Na5
{[%clk 0:02:39.2]} 14... d5 {[%clk 0:02:13.5]} 15. exd5 {[%clk 0:02:34.1]} 15...
cxd5 {[%clk 0:02:06.8]} 16. Be3 {[%clk 0:02:34.3]} 16... Qd7 {[%clk 0:01:54.8]}
17. Bc5 {[%clk 0:02:27.2]} 17... Rfc8 {[%clk 0:01:54.5]} 18. Qe2 {[%clk
0:02:24.6]} 18... Bf7 {[%clk 0:01:51]} 19. Ra3 {[%clk 0:02:10.7]} 19... g5
{[%clk 0:01:49.9]} 20. Nd4 {[%clk 0:02:00]} 20... Ng6 {[%clk 0:01:44.9]} 21.
Ndb3 {[%clk 0:01:53.5]} 21... Nf4 {[%clk 0:01:43.6]} 22. Qf1 {[%clk 0:01:53.9]}
22... d4 {[%clk 0:01:35.2]} 23. Nd2 {[%clk 0:01:53.2]} 23... Bd5 {[%clk
0:01:33.2]} 24. f3 {[%clk 0:01:49.2]} 24... f5 {[%clk 0:01:29.7]} 25. Nab3
{[%clk 0:01:46.5]} 25... g4 {[%clk 0:01:23.3]} 26. hxg4 {[%clk 0:01:41.9]} 26...
fxg4 {[%clk 0:01:24.2]} 27. Rea1 {[%clk 0:01:41.8]} 27... gxf3 {[%clk 0:01:22]}
28. Nxf3 {[%clk 0:01:41.6]} 28... Qg4 {[%clk 0:01:21.7]} 29. Nbd2 {[%clk
0:01:40.4]} 29... Rc6 {[%clk 0:01:15.1]} 30. Ra6 {[%clk 0:01:27.9]} 30... Re8
{[%clk 0:01:07.4]} 31. Rxc6 {[%clk 0:01:21.2]} 31... Bxc6 {[%clk 0:01:08.3]} 32.
Rxa7 {[%clk 0:01:20.9]} 32... Re6 {[%clk 0:01:07.5]} 33. b5 {[%clk 0:00:56.6]}
33... Bd5 {[%clk 0:00:55.8]} 34. Rd7 {[%clk 0:00:55.4]} 34... Rg6 {[%clk
0:00:52.8]} 35. Rxd5 {[%clk 0:00:53]} 35... Nxd5 {[%clk 0:00:53.3]} 36. Ne4
{[%clk 0:00:53.3]} 36... Ne3 {[%clk 0:00:52.6]} 37. Qe2 {[%clk 0:00:42.9]} 37...
Nxg2 {[%clk 0:00:49]} 38. Nxd4 {[%clk 0:00:23.8]} 38... exd4 {[%clk 0:00:44.6]}
39. Qxg4 {[%clk 0:00:23.6]} 39... Rxg4 {[%clk 0:00:44.6]} 40. b6 {[%clk
0:00:24.3]} 40... Ne3+ {[%clk 0:00:39.6]} 41. Kf2 {[%clk 0:00:24.6]} 41... Rg2+
{[%clk 0:00:39]} 42. Kf3 {[%clk 0:00:24.1]} 42... Rxc2 {[%clk 0:00:38.4]} 43.
Ba3 {[%clk 0:00:21.5]} 43... Rc6 {[%clk 0:00:35.4]} 44. Bc5 {[%clk 0:00:20.9]}
44... Be5 {[%clk 0:00:30.6]} 45. b7 {[%clk 0:00:21.2]} 45... Nf5 {[%clk
0:00:24.7]} 46. Kg4 {[%clk 0:00:19.5]} 46... Ng7 {[%clk 0:00:19.6]} 47. Bxd4
{[%clk 0:00:18.6]} 47... Bb8 {[%clk 0:00:18.6]} 48. Nf6+ {[%clk 0:00:18.4]}
48... Kf7 {[%clk 0:00:17.9]} 49. Nd7 {[%clk 0:00:16.3]} 49... Ne6 {[%clk
0:00:18.8]} 50. Nxb8 {[%clk 0:00:15.8]} 50... Nxd4 {[%clk 0:00:18.3]} 51. Nxc6
{[%clk 0:00:14.6]} 51... Nxc6 {[%clk 0:00:19.2]} 52. Kh5 {[%clk 0:00:14.5]}
52... Kg7 {[%clk 0:00:20.1]} 53. d4 {[%clk 0:00:14.7]} 53... Nb8 {[%clk
0:00:19.4]} 54. d5 {[%clk 0:00:14.8]} 54... Nd7 {[%clk 0:00:20.3]} 55. d6 {[%clk
0:00:14.5]} 55... Kh7 {[%clk 0:00:20.3]} 56. Kg4 {[%clk 0:00:12]} 56... Kg6
{[%clk 0:00:20.9]} 57. Kf4 {[%clk 0:00:12.6]} 57... h5 {[%clk 0:00:21]} 58. Ke4
{[%clk 0:00:13.2]} 58... Kg5 {[%clk 0:00:20.2]} 59. Kd5 {[%clk 0:00:13.2]} 59...
h4 {[%clk 0:00:20.8]} 60. Kc6 {[%clk 0:00:13]} 60... Nb8+ {[%clk 0:00:20.7]} 61.
Kc7 {[%clk 0:00:13.1]} 61... Na6+ {[%clk 0:00:21]} 62. Kc8 {[%clk 0:00:12.7]}
62... h3 {[%clk 0:00:21.2]} 63. d7 {[%clk 0:00:13.2]} 63... h2 {[%clk
0:00:19.2]} 64. d8=Q+ {[%clk 0:00:13.5]} 1-0

[Event "Late-Titled-Tuesday-Blitz-October-17-2023"]
[Site "Chess.com"]
[Date "2023.10.17"]
[Round "1"]
[White "BasilSmash"]
[Black "The_Princess_Moon"]
[Result "1-0"]
[WhiteElo "2643"]
[BlackElo "2335"]
[TimeControl "180+1"]
[EndTime "14:08:03 PDT"]
[Termination "BasilSmash won by checkmate"]

1. e4 {[%clk 0:02:59]} 1... c5 {[%clk 0:00:40.5]} 2. Nf3 {[%clk 0:02:56.7]} 2...
a6 {[%clk 0:00:41.4]} 3. c4 {[%clk 0:02:55.3]} 3... Nc6 {[%clk 0:00:39]} 4. d4
{[%clk 0:02:55]} 4... cxd4 {[%clk 0:00:39.9]} 5. Nxd4 {[%clk 0:02:55.5]} 5...
Nxd4 {[%clk 0:00:40.8]} 6. Qxd4 {[%clk 0:02:55.2]} 6... d6 {[%clk 0:00:41.1]} 7.
Nc3 {[%clk 0:02:54.3]} 7... Nf6 {[%clk 0:00:41.6]} 8. f3 {[%clk 0:02:53.1]} 8...
g6 {[%clk 0:00:41.9]} 9. Be3 {[%clk 0:02:53]} 9... Bg7 {[%clk 0:00:42.4]} 10.
Be2 {[%clk 0:02:50.5]} 10... O-O {[%clk 0:00:41.7]} 11. Qd2 {[%clk 0:02:50.4]}
11... Rb8 {[%clk 0:00:41.5]} 12. O-O {[%clk 0:02:49.2]} 12... Be6 {[%clk
0:00:41.9]} 13. Rac1 {[%clk 0:02:47.7]} 13... Qa5 {[%clk 0:00:38.9]} 14. b3
{[%clk 0:02:35.3]} 14... Rfc8 {[%clk 0:00:36.1]} 15. Rfd1 {[%clk 0:02:09.7]}
15... b5 {[%clk 0:00:35]} 16. Nd5 {[%clk 0:02:09]} 16... Qxd2 {[%clk 0:00:34.4]}
17. Bxd2 {[%clk 0:02:05]} 17... Bxd5 {[%clk 0:00:28.2]} 18. cxd5 {[%clk
0:02:04]} 18... Nd7 {[%clk 0:00:26.4]} 19. Be3 {[%clk 0:02:00]} 19... h5 {[%clk
0:00:22.4]} 20. Kf2 {[%clk 0:01:57.1]} 20... Kf8 {[%clk 0:00:17]} 21. g3 {[%clk
0:01:48]} 21... Nc5 {[%clk 0:00:16.5]} 22. h4 {[%clk 0:01:43.5]} 22... b4 {[%clk
0:00:16.2]} 23. Rc4 {[%clk 0:01:41.7]} 23... Bc3 {[%clk 0:00:14.4]} 24. g4
{[%clk 0:01:35.4]} 24... hxg4 {[%clk 0:00:12.6]} 25. fxg4 {[%clk 0:01:36.3]}
25... a5 {[%clk 0:00:12.9]} 26. Rh1 {[%clk 0:01:31.6]} 26... Nd7 {[%clk
0:00:12.4]} 27. h5 {[%clk 0:01:27]} 27... Rxc4 {[%clk 0:00:12]} 28. Bxc4 {[%clk
0:01:26.2]} 28... Kg7 {[%clk 0:00:10.8]} 29. h6+ {[%clk 0:01:23.1]} 29... Kh7
{[%clk 0:00:10.6]} 30. g5 {[%clk 0:01:23.2]} 30... Ne5 {[%clk 0:00:11.1]} 31.
Be2 {[%clk 0:01:22]} 31... a4 {[%clk 0:00:10.5]} 32. bxa4 {[%clk 0:01:15.9]}
32... Ra8 {[%clk 0:00:10.5]} 33. Bd1 {[%clk 0:01:16.2]} 33... f6 {[%clk
0:00:10.6]} 34. Ke2 {[%clk 0:01:08.8]} 34... Ra5 {[%clk 0:00:09.2]} 35. Bb3
{[%clk 0:01:05]} 35... f5 {[%clk 0:00:08.6]} 36. exf5 {[%clk 0:01:04.3]} 36...
gxf5 {[%clk 0:00:09.5]} 37. Bc2 {[%clk 0:01:04]} 37... Kg6 {[%clk 0:00:08.3]}
38. h7 {[%clk 0:01:03.8]} 38... Nf7 {[%clk 0:00:08.9]} 39. Kd3 {[%clk
0:00:27.7]} 39... Bh8 {[%clk 0:00:08.6]} 40. Kc4 {[%clk 0:00:25.4]} 40... Ra8
{[%clk 0:00:07.8]} 41. Kxb4 {[%clk 0:00:23.8]} 41... Ne5 {[%clk 0:00:06.6]} 42.
a5 {[%clk 0:00:20.5]} 42... Rb8+ {[%clk 0:00:07.5]} 43. Bb6 {[%clk 0:00:19.4]}
43... Nd7 {[%clk 0:00:07.1]} 44. Kb5 {[%clk 0:00:19.1]} 44... Ne5 {[%clk
0:00:05.7]} 45. a4 {[%clk 0:00:18.6]} 45... Rc8 {[%clk 0:00:05.9]} 46. a6 {[%clk
0:00:18.6]} 46... Rxc2 {[%clk 0:00:05.8]} 47. a7 {[%clk 0:00:18.9]} 47... Rb2+
{[%clk 0:00:06.4]} 48. Ka6 {[%clk 0:00:19]} 48... Nc4 {[%clk 0:00:06.2]} 49. a5
{[%clk 0:00:19.2]} 49... Nxb6 {[%clk 0:00:05.7]} 50. axb6 {[%clk 0:00:20.1]}
50... Ra2+ {[%clk 0:00:05.4]} 51. Kb7 {[%clk 0:00:20.2]} 51... f4 {[%clk
0:00:05.7]} 52. a8=Q {[%clk 0:00:19.5]} 52... Rxa8 {[%clk 0:00:06.1]} 53. Kxa8
{[%clk 0:00:20.4]} 53... f3 {[%clk 0:00:06.6]} 54. b7 {[%clk 0:00:20.4]} 54...
Kxg5 {[%clk 0:00:06.3]} 55. b8=Q {[%clk 0:00:19.8]} 55... Bg7 {[%clk 0:00:06.9]}
56. Qg8 {[%clk 0:00:19.1]} 56... Kf6 {[%clk 0:00:06.9]} 57. h8=Q {[%clk
0:00:19]} 57... f2 {[%clk 0:00:07.2]} 58. Qhxg7+ {[%clk 0:00:19]} 58... Kf5
{[%clk 0:00:07.6]} 59. Qe6+ {[%clk 0:00:19.1]} 59... Kf4 {[%clk 0:00:08.5]} 60.
Qgg4# {[%clk 0:00:19.2]} 1-0